fUSD/lending_fUSD_20240627
["ID","MTS","AMOUNT","RATE_DAILY","PERIOD"]
[330475279,1719470711310,-500.0,0.00044383,120]
[330475280,1719470711351,-500.0,0.00044383,120]
[330475281,1719470711391,-500.0,0.00044383,120]
[330475282,1719470711433,-500.0,0.00044383,120]
[330475283,1719470711474,-500.0,0.00044383,120]
[330475284,1719470711515,-560.60482107,0.00044383,120]
[330475285,1719470711556,-500.0,0.00044383,120]
[330475286,1719470711595,-500.0,0.00044383,120]
[330475287,1719470711638,-1576.33,0.00044383,120]
[330475288,1719470711679,-500.0,0.00044383,120]
[330475289,1719470711719,-500.0,0.00044383,120]
[330475290,1719470711760,-500.0,0.00044383,120]
[330475291,1719470711799,-500.0,0.00044383,120]
[330475292,1719470711838,-510.67655857,0.00044383,120]
[330475293,1719470711879,-500.0,0.00044383,120]
[330475294,1719470711919,-500.0,0.00044383,120]
[330475295,1719470711960,-500.0,0.00044383,120]
[330475296,1719470711999,-500.0,0.00044383,120]
[330475297,1719470712038,-500.0,0.00044383,120]
[330475298,1719470712077,-500.0,0.00044383,120]
[330475299,1719470712118,-1294.0,0.00044383,120]
[330475300,1719470712161,-547.65496235,0.00044383,120]
[330475301,1719470712203,-500.0,0.00044383,120]
[330475302,1719470712240,-579.13,0.00044383,120]
[330475303,1719470712280,-152.24122907,0.00044383,120]
[330475304,1719470712321,-500.0,0.00044383,120]
[330475305,1719470712362,-1640.8,0.00044383,120]
[330475306,1719470712402,-500.0,0.00044383,120]
[330475307,1719470712441,-516.39043227,0.00044383,120]
[330475308,1719470712490,-3889.99,0.00044383,120]
[330475309,1719470712547,-1036.79,0.00044383,120]
[330475310,1719470712600,-500.0,0.00044383,120]
[330475311,1719470712645,-500.0,0.00044383,120]
[330475312,1719470712688,-313.55949126,0.00044383,120]
[330475313,1719470712729,-500.0,0.00044383,120]
[330475314,1719470712774,-924.79,0.00044383,120]
[330475315,1719470712818,-500.0,0.00044383,120]
[330475316,1719470712860,-500.0,0.00044383,120]
[330475317,1719470712903,-1159.09,0.00044383,120]
[330475318,1719470713200,-500.0,0.00044383,120]
[330475319,1719470713246,-503.86739934,0.00044383,120]
[330475320,1719470713290,-1465.18,0.00044383,120]
[330475321,1719470713334,-500.0,0.00044383,120]
[330475322,1719470713378,-500.0,0.00044383,120]
[330475323,1719470713427,-500.0,0.00044383,120]
[330475324,1719470713473,-500.0,0.00044383,120]
[330475325,1719470713520,-500.0,0.00044383,120]
[330475326,1719470713567,-500.0,0.00044383,120]
[330475327,1719470713611,-500.0,0.00044383,120]
[330475328,1719470713658,-614.57,0.00044383,120]
[330475329,1719470713704,-355.03487956,0.00044383,120]
[330475330,1719470713750,-932.71,0.00044383,120]
[330475331,1719470713796,-500.0,0.00044383,120]
[330475332,1719470713841,-500.0,0.00044383,120]
[330475333,1719470713885,-500.0,0.00044383,120]
[330475334,1719470713931,-1664.59,0.00044383,120]
[330475335,1719470713975,-342.55342784,0.00044383,120]
[330475336,1719470714018,-394.20883774,0.00044383,120]
[330475337,1719470714062,-500.0,0.00044383,120]
[330475338,1719470714104,-500.0,0.00044383,120]
[330475339,1719470714152,-1009.42,0.00044383,120]
[330475340,1719470714196,-500.0,0.00044383,120]
[330475341,1719470714244,-829.26,0.00044383,120]
[330475342,1719470714292,-637.61,0.00044383,120]
[330475343,1719470714337,-500.0,0.00044383,120]
[330475344,1719470714381,-500.0,0.00044383,120]
[330475345,1719470714427,-501.90132259,0.00044383,120]
[330475346,1719470714473,-500.0,0.00044383,120]
[330475347,1719470714520,-500.0,0.00044383,120]
[330475348,1719470714578,-500.0,0.00044383,120]
[330475349,1719470714623,-1581.4,0.00044383,120]
[330475350,1719470714667,-500.0,0.00044383,120]
[330475351,1719470714709,-500.0,0.00044383,120]
[330475352,1719470714751,-501.9002658,0.00044383,120]
[330475353,1719470714793,-500.0,0.00044383,120]
[330475354,1719470714836,-500.0,0.00044383,120]
[330475355,1719470714884,-500.0,0.00044383,120]
[330475356,1719470714936,-500.0,0.00044383,120]
[330475357,1719470714991,-500.0,0.00044383,120]
[330475358,1719470715036,-500.0,0.00044383,120]
[330475359,1719470715095,-500.0,0.00044383,120]
[330475360,1719470715142,-500.0,0.00044383,120]
[330475361,1719470715189,-500.0,0.00044383,120]
[330475362,1719470715236,-1903.57,0.00044383,120]
[330475363,1719470715280,-798.16,0.00044383,120]
[330475364,1719470715324,-500.0,0.00044383,120]
[330475365,1719470715371,-500.0,0.00044383,120]
[330475366,1719470715419,-500.0,0.00044383,120]
[330475367,1719470715466,-579.43,0.00044383,120]
[330475368,1719470715512,-500.0,0.00044383,120]
[330475369,1719470715561,-500.0,0.00044383,120]
[330475370,1719470715606,-585.48,0.00044383,120]
[330475371,1719470715652,-500.0,0.00044383,120]
[330475372,1719470715698,-500.0,0.00044383,120]
[330475373,1719470715744,-608.79,0.00044383,120]
[330475374,1719470715797,-693.21,0.00044383,120]
[330475375,1719470715844,-500.0,0.00044383,120]
[330475376,1719470715888,-500.0,0.00044383,120]
[330475377,1719470715932,-500.0,0.00044383,120]
[330475378,1719470715976,-962.19,0.00044383,120]
[330475379,1719470716019,-500.0,0.00044383,120]
[330475380,1719470716063,-582.13,0.00044383,120]
[330475381,1719470716111,-500.0,0.00044383,120]
[330475382,1719470716155,-500.0,0.00044383,120]
[330475383,1719470716199,-500.0,0.00044383,120]
[330475384,1719470716244,-558.82,0.00044383,120]
[330475385,1719470716290,-500.0,0.00044383,120]
[330475386,1719470716337,-500.0,0.00044383,120]
[330475387,1719470716383,-535.37,0.00044383,120]
[330475388,1719470716429,-500.0,0.00044383,120]
[330475389,1719470716475,-641.46,0.00044383,120]
[330475390,1719470716520,-945.8,0.00044383,120]
[330475391,1719470716565,-501.99335023,0.00044383,120]
[330475392,1719470716610,-500.0,0.00044383,120]
[330475393,1719470716655,-743.41,0.00044383,120]
[330475394,1719470716702,-555.35,0.00044383,120]
[330475395,1719470716746,-500.0,0.00044383,120]
[330475396,1719470716793,-500.0,0.00044383,120]
[330475397,1719470716838,-3424.05,0.00044383,120]
[330475398,1719470716879,-500.0,0.00044383,120]
[330475399,1719470716920,-2292.12,0.00044383,120]
[330475400,1719470716963,-511.38,0.00044383,120]
[330475401,1719470717007,-556.1,0.00044383,120]
[330475402,1719470717050,-1789.95,0.00044383,120]
[330475403,1719470717095,-677.72,0.00044383,120]
[330475404,1719470717140,-1139.96,0.00044383,120]
[330475405,1719470717184,-2037.17,0.00044383,120]
[330475406,1719470717229,-1069.35,0.00044383,120]
[330475407,1719470717270,-500.0,0.00044383,120]
[330475408,1719470717313,-500.0,0.00044383,120]
[330475409,1719470717357,-500.0,0.00044383,120]
[330475410,1719470717401,-500.0,0.00044383,120]
[330475411,1719470717446,-500.0,0.00044383,120]
[330475412,1719470717489,-994.61,0.00044383,120]
[330475413,1719470717534,-1597.79,0.00044383,120]
[330475414,1719470717579,-500.0,0.00044383,120]
[330475415,1719470717621,-500.0,0.00044383,120]
[330475416,1719470717664,-500.0,0.00044383,120]
[330475417,1719470717708,-500.0,0.00044383,120]
[330475418,1719470717749,-500.0,0.00044383,120]
[330475419,1719470717795,-500.0,0.00044383,120]
[330475420,1719470717838,-431.95612624,0.00044383,120]
[330475421,1719470717882,-1273.36,0.00044383,120]
[330475422,1719470718144,-500.0,0.00044383,120]
[330475423,1719470718189,-500.0,0.00044383,120]
[330475424,1719470718232,-500.0,0.00044383,120]
[330475425,1719470718276,-11245.17,0.00044383,120]
[330475426,1719470718322,-591.6,0.00044383,120]
[330475427,1719470718364,-500.0,0.00044383,120]
[330475428,1719470718410,-500.0,0.00044383,120]
[330475429,1719470718455,-500.0,0.00044383,120]
[330475430,1719470718502,-500.0,0.00044383,120]
[330475431,1719470718548,-500.0,0.00044383,120]
[330475432,1719470718593,-500.0,0.00044383,120]
[330475433,1719470718639,-504.59994938,0.00044383,120]
[330475434,1719470718689,-1337.87,0.00044383,120]
[330475435,1719470718740,-637.26,0.00044383,120]
[330475436,1719470718794,-500.0,0.00044383,120]
[330475437,1719470718840,-500.0,0.00044383,120]
[330475438,1719470718885,-500.0,0.00044383,120]
[330475439,1719470718931,-500.0,0.00044383,120]
[330475440,1719470718978,-301.99715706,0.00044383,120]
[330475441,1719470719021,-500.0,0.00044383,120]
[330475442,1719470719066,-502.69,0.00044383,120]
[330475443,1719470719112,-504.50911683,0.00044383,120]
[330475444,1719470719160,-500.0,0.00044383,120]
[330475445,1719470719204,-725.24,0.00044383,120]
[330475446,1719470719246,-500.0,0.00044383,120]
[330475447,1719470719293,-500.0,0.00044383,120]
[330475448,1719470719336,-1308.09,0.00044383,120]
[330475449,1719470719379,-500.0,0.00044383,120]
[330475450,1719470719426,-500.0,0.00044383,120]
[330475451,1719470719470,-500.0,0.00044383,120]
[330475452,1719470719518,-500.0,0.00044383,120]
[330475453,1719470719561,-500.0,0.00044383,120]
[330475454,1719470719605,-718.58,0.00044383,120]
[330475455,1719470719648,-500.0,0.00044383,120]
[330475456,1719470719691,-500.0,0.00044383,120]
[330475457,1719470719734,-500.0,0.00044383,120]
[330475458,1719470719777,-946.37,0.00044383,120]
[330475459,1719470719822,-500.0,0.00044383,120]
[330475460,1719470719865,-500.0,0.00044383,120]
[330475461,1719470719911,-500.0,0.00044383,120]
[330475462,1719470719955,-500.0,0.00044383,120]
[330475463,1719470719999,-500.0,0.00044383,120]
[330475464,1719470720046,-538.52519387,0.00044383,120]
[330475465,1719470720090,-500.0,0.00044383,120]
[330475466,1719470720136,-500.0,0.00044383,120]
[330475467,1719470720181,-500.0,0.00044383,120]
[330475468,1719470720225,-500.0,0.00044383,120]
[330475469,1719470720270,-500.0,0.00044383,120]
[330475470,1719470720314,-500.0,0.00044383,120]
[330475471,1719470720357,-500.0,0.00044383,120]
[330475472,1719470720402,-757.03,0.00044383,120]
[330475473,1719470720447,-500.0,0.00044383,120]
[330475474,1719470720489,-500.0,0.00044383,120]
[330475475,1719470720532,-549.18,0.00044383,120]
[330475476,1719470720578,-1278.0,0.00044383,120]
[330475477,1719470720621,-566.01,0.00044383,120]
[330475478,1719470720665,-500.0,0.00044383,120]
[330475479,1719470720710,-500.0,0.00044383,120]
[330475480,1719470720756,-502.42988548,0.00044383,120]
[330475481,1719470720801,-500.0,0.00044383,120]
[330475482,1719470720845,-2289.93,0.00044383,120]
[330475483,1719470720890,-500.0,0.00044383,120]
[330475484,1719470720934,-500.0,0.00044383,120]
[330475485,1719470720978,-506.26023584,0.00044383,120]
[330475486,1719470721024,-1533.08,0.00044383,120]
[330475487,1719470721071,-2331.46,0.00044383,120]
[330475488,1719470721119,-500.0,0.00044383,120]
[330475489,1719470721177,-500.0,0.00044383,120]
[330475490,1719470721227,-500.0,0.00044383,120]
[330475491,1719470721271,-1927.68,0.00044383,120]
[330475492,1719470721316,-500.0,0.00044383,120]
[330475493,1719470721360,-27172.75,0.00044383,120]
[330475494,1719470721406,-26040.55,0.00044383,120]
[330475495,1719470721450,-500.0,0.00044383,120]
[330475496,1719470721493,-500.0,0.00044383,120]
[330475497,1719470721536,-503.97316585,0.00044383,120]
[330475498,1719470721580,-500.0,0.00044383,120]
[330475499,1719470721623,-500.0,0.00044383,120]
[330475500,1719470721665,-500.0,0.00044383,120]
[330475501,1719470721708,-500.0,0.00044383,120]
[330475502,1719470721753,-500.0,0.00044383,120]
[330475503,1719470721798,-500.0,0.00044383,120]
[330475504,1719470721841,-643.09511617,0.00044383,120]
[330475505,1719470721883,-500.0,0.00044383,120]
[330475506,1719470721925,-500.0,0.00044383,120]
[330475507,1719470721968,-500.0,0.00044383,120]
[330475508,1719470722012,-500.0,0.00044383,120]
[330475509,1719470722054,-500.0,0.00044383,120]
[330475510,1719470722097,-500.0,0.00044383,120]
[330475511,1719470722140,-500.0,0.00044383,120]
[330475512,1719470722182,-586.27,0.00044383,120]
[330475513,1719470722229,-506.88713206,0.00044383,120]
[330475514,1719470722271,-500.0,0.00044383,120]
[330475515,1719470722315,-671.6,0.00044383,120]
[330475516,1719470722357,-500.0,0.00044383,120]
[330475517,1719470722401,-1323.97,0.00044383,120]
[330475518,1719470722444,-500.0,0.00044383,120]
[330475519,1719470722486,-500.0,0.00044383,120]
[330475520,1719470722527,-500.0,0.00044383,120]
[330475521,1719470722572,-687.5,0.00044383,120]
[330475522,1719470722614,-500.0,0.00044383,120]
[330475523,1719470722656,-500.0,0.00044383,120]
[330475524,1719470722698,-500.0,0.00044383,120]
[330475525,1719470722740,-500.0,0.00044383,120]
[330475526,1719470722785,-516.64,0.00044383,120]
[330475527,1719470722829,-500.0,0.00044383,120]
[330475528,1719470722869,-500.0,0.00044383,120]
[330475529,1719470722913,-784.71,0.00044383,120]
[330475530,1719470722955,-564.87,0.00044383,120]
[330475531,1719470722998,-500.0,0.00044383,120]
[330475532,1719470723042,-500.0,0.00044383,120]
[330475533,1719470723084,-500.0,0.00044383,120]
[330475534,1719470723130,-500.0,0.00044383,120]
[330475535,1719470723176,-500.0,0.00044383,120]
[330475536,1719470723222,-500.0,0.00044383,120]
[330475537,1719470723267,-500.0,0.00044383,120]
[330475538,1719470723310,-542.11,0.00044383,120]
[330475539,1719470723354,-500.0,0.00044383,120]
[330475540,1719470723399,-500.0,0.00044383,120]
[330475541,1719470723445,-500.0,0.00044383,120]
[330475542,1719470723491,-246.42116217,0.00044383,120]
[330475543,1719470723537,-500.0,0.00044383,120]
[330475544,1719470723584,-500.0,0.00044383,120]
[330475545,1719470723630,-1797.8,0.00044383,120]
[330475546,1719470723674,-500.0,0.00044383,120]
[330475547,1719470723719,-829.66,0.00044383,120]
[330475548,1719470723766,-458.46363859,0.00044383,120]
[330475549,1719470723811,-782.33,0.00044383,120]
[330475550,1719470723855,-1396.29,0.00044383,120]
[330475551,1719470723898,-500.0,0.00044383,120]
[330475552,1719470723941,-500.0,0.00044383,120]
[330475553,1719470723984,-784.1,0.00044383,120]
[330475554,1719470724026,-754.87,0.00044383,120]
[330475555,1719470724070,-500.0,0.00044383,120]
[330475556,1719470724118,-500.0,0.00044383,120]
[330475557,1719470724162,-500.0,0.00044383,120]
[330475558,1719470724204,-500.0,0.00044383,120]
[330475559,1719470724251,-500.57,0.00044383,120]
[330475560,1719470724301,-500.0,0.00044383,120]
[330475561,1719470724347,-500.0,0.00044383,120]
[330475562,1719470724391,-1600.16,0.00044383,120]
[330475563,1719470724435,-500.0,0.00044383,120]
[330475564,1719470724478,-584.44436493,0.00044383,120]
[330475565,1719470724524,-500.0,0.00044383,120]
[330475566,1719470724570,-500.0,0.00044383,120]
[330475567,1719470724617,-500.0,0.00044383,120]
[330475568,1719470724662,-500.0,0.00044383,120]
[330475569,1719470724707,-500.0,0.00044383,120]
[330475570,1719470724750,-500.0,0.00044383,120]
[330475571,1719470724795,-561.17,0.00044383,120]
[330475572,1719470724840,-1509.02,0.00044383,120]
[330475573,1719470724885,-500.0,0.00044383,120]
[330475574,1719470724939,-2361.82,0.00044383,120]
[330475575,1719470724983,-500.0,0.00044383,120]
[330475576,1719470725028,-1563.42,0.00044383,120]
[330475577,1719470725073,-500.0,0.00044383,120]
[330475578,1719470725117,-500.0,0.00044383,120]
[330475579,1719470725165,-1273.2,0.00044383,120]
[330475580,1719470725211,-856.57,0.00044383,120]
[330475581,1719470725260,-500.0,0.00044383,120]
[330475582,1719470725310,-754.02,0.00044383,120]
[330475583,1719470725355,-532.67,0.00044383,120]
[330475584,1719470725402,-782.31,0.00044383,120]
[330475585,1719470725449,-500.0,0.00044383,120]
[330475586,1719470725496,-500.0,0.00044383,120]
[330475587,1719470725543,-500.0,0.00044383,120]
[330475588,1719470725591,-4687.31,0.00044383,120]
[330475589,1719470725644,-687.18,0.00044383,120]
[330475590,1719470725691,-500.0,0.00044383,120]
[330475591,1719470725736,-500.0,0.00044383,120]
[330475592,1719470725783,-500.0,0.00044383,120]
[330475593,1719470725831,-529.25,0.00044383,120]
[330475594,1719470725877,-780.27,0.00044383,120]
[330475595,1719470725922,-500.0,0.00044383,120]
[330475596,1719470725968,-1044.52,0.00044383,120]
[330475597,1719470726015,-500.0,0.00044383,120]
[330475598,1719470726060,-638.66421945,0.00044383,120]
[330475599,1719470726106,-500.0,0.00044383,120]
[330475600,1719470726152,-1151.75,0.00044383,120]
[330475601,1719470726196,-520.35,0.00044383,120]
[330475602,1719470726243,-2501.01,0.00044383,120]
[330475603,1719470726288,-986.4,0.00044383,120]
[330475604,1719470726333,-500.26,0.00044383,120]
[330475605,1719470726380,-1046.1,0.00044383,120]
[330475606,1719470726428,-1541.75,0.00044383,120]
[330475607,1719470726475,-3067.76,0.00044383,120]
[330475608,1719470726521,-1871.0,0.00044383,120]
[330475609,1719470726571,-500.0,0.00044383,120]
[330475610,1719470726626,-500.0,0.00044383,120]
[330475611,1719470726680,-576.51,0.00044383,120]
[330475612,1719470726732,-500.0,0.00044383,120]
[330475613,1719470726783,-500.0,0.00044383,120]
[330475614,1719470726837,-500.0,0.00044383,120]
[330475615,1719470726892,-1003.17,0.00044383,120]
[330475616,1719470726944,-1304.5,0.00044383,120]
[330475617,1719470726993,-500.0,0.00044383,120]
[330475618,1719470728360,-879.02,0.00044383,120]
[330475619,1719470728458,-721.95,0.00044383,120]
[330475620,1719470728505,-500.0,0.00044383,120]
[330475621,1719470728554,-574.06,0.00044383,120]
[330475622,1719470728600,-500.0,0.00044383,120]
[330475623,1719470728643,-500.0,0.00044383,120]
[330475624,1719470728688,-2226.61,0.00044383,120]
[330475625,1719470728735,-2501.35,0.00044383,120]
[330475626,1719470728781,-951.42,0.00044383,120]
[330475627,1719470728826,-834.19,0.00044383,120]
[330475628,1719470728868,-500.0,0.00044383,120]
[330475629,1719470728911,-500.0,0.00044383,120]
[330475630,1719470728956,-607.02,0.00044383,120]
[330475631,1719470729000,-500.0,0.00044383,120]
[330475632,1719470729045,-500.0,0.00044383,120]
[330475633,1719470729099,-2615.24,0.00044383,120]
[330475634,1719470729155,-500.0,0.00044383,120]
[330475635,1719470729202,-2501.31,0.00044383,120]
[330475636,1719470729247,-500.0,0.00044383,120]
[330475637,1719470729290,-500.0,0.00044383,120]
[330475638,1719470729334,-1566.08,0.00044383,120]
[330475639,1719470729377,-1063.16,0.00044383,120]
[330475640,1719470729423,-500.0,0.00044383,120]
[330475641,1719470729467,-1538.18,0.00044383,120]
[330475642,1719470729513,-548.81,0.00044383,120]
[330475643,1719470729557,-500.0,0.00044383,120]
[330475644,1719470729599,-500.0,0.00044383,120]
[330475645,1719470729642,-500.0,0.00044383,120]
[330475646,1719470729684,-500.0,0.00044383,120]
[330475647,1719470729729,-2319.49,0.00044383,120]
[330475648,1719470729770,-500.0,0.00044383,120]
[330475649,1719470729811,-1643.89,0.00044383,120]
[330475650,1719470729852,-500.0,0.00044383,120]
[330475651,1719470729894,-500.0,0.00044383,120]
[330475652,1719470729935,-2222.84,0.00044383,120]
[330475653,1719470729977,-727.31,0.00044383,120]
[330475654,1719470730020,-2049.55,0.00044383,120]
[330475655,1719470730064,-2335.18,0.00044383,120]
[330475656,1719470730108,-792.45,0.00044383,120]
[330475657,1719470730155,-500.0,0.00044383,120]
[330475658,1719470730199,-747.69,0.00044383,120]
[330475659,1719470730244,-997.67,0.00044383,120]
[330475660,1719470730287,-565.2,0.00044383,120]
[330475661,1719470730332,-500.0,0.00044383,120]
[330475662,1719470730376,-500.0,0.00044383,120]
[330475663,1719470730421,-1048.58,0.00044383,120]
[330475664,1719470730465,-581.97,0.00044383,120]
[330475665,1719470730509,-543.02,0.00044383,120]
[330475666,1719470730553,-500.0,0.00044383,120]
[330475667,1719470730597,-500.0,0.00044383,120]
[330475668,1719470730640,-500.0,0.00044383,120]
[330475669,1719470730682,-500.0,0.00044383,120]
[330475670,1719470730727,-500.0,0.00044383,120]
[330475671,1719470730770,-1840.86,0.00044383,120]
[330475672,1719470730814,-1367.68,0.00044383,120]
[330475673,1719470730856,-500.0,0.00044383,120]
[330475674,1719470730900,-846.38,0.00044383,120]
[330475675,1719470730943,-1518.38,0.00044383,120]
[330475676,1719470730988,-1190.23,0.00044383,120]
[330475677,1719470731032,-1232.26,0.00044383,120]
[330475678,1719470731076,-500.0,0.00044383,120]
[330475679,1719470731121,-1670.85,0.00044383,120]
[330475680,1719470731165,-500.0,0.00044383,120]
[330475681,1719470731210,-500.0,0.00044383,120]
[330475682,1719470731254,-500.0,0.00044383,120]
[330475683,1719470731298,-2921.04,0.00044383,120]
[330475684,1719470731343,-738.36,0.00044383,120]
[330475685,1719470731386,-500.0,0.00044383,120]
[330475686,1719470731430,-609.6,0.00044383,120]
[330475687,1719470731473,-1022.95,0.00044383,120]
[330475688,1719470731578,-500.0,0.00044383,120]
[330475689,1719470731622,-500.0,0.00044383,120]
[330475690,1719470731665,-2298.25,0.00044383,120]
[330475691,1719470731710,-500.0,0.00044383,120]
[330475692,1719470731759,-1715.04,0.00044383,120]
[330475693,1719470731801,-357.44846905,0.00044383,120]
[330475694,1719470731843,-500.0,0.00044383,120]
[330475695,1719470731886,-5051.87,0.00044383,120]
[330475696,1719470731928,-552.27,0.00044383,120]
[330475697,1719470731973,-500.0,0.00044383,120]
[330475698,1719470732016,-500.0,0.00044383,120]
[330475699,1719470732057,-500.0,0.00044383,120]
[330475700,1719470732100,-500.0,0.00044383,120]
[330475701,1719470732144,-500.0,0.00044383,120]
[330475702,1719470732189,-500.0,0.00044383,120]
[330475703,1719470732232,-1084.3,0.00044383,120]
[330475704,1719470732274,-500.0,0.00044383,120]
[330475705,1719470732317,-500.0,0.00044383,120]
[330475706,1719470732362,-500.0,0.00044383,120]
[330475707,1719470732406,-500.0,0.00044383,120]
[330475708,1719470732447,-407.83143218,0.00044383,120]
[330475709,1719470732488,-500.0,0.00044383,120]
[330475710,1719470732529,-563.99,0.00044383,120]
[330475711,1719470732572,-500.0,0.00044383,120]
[330475712,1719470732617,-504.85271841,0.00044383,120]
[330475713,1719470732660,-500.0,0.00044383,120]
[330475714,1719470732704,-500.0,0.00044383,120]
[330475715,1719470732749,-725.04,0.00044383,120]
[330475716,1719470732795,-500.0,0.00044383,120]
[330475717,1719470732841,-500.0,0.00044383,120]
[330475718,1719470732896,-2049.92,0.00044383,120]
[330475719,1719470732944,-500.0,0.00044383,120]
[330475720,1719470732990,-500.0,0.00044383,120]
[330475721,1719470733039,-718.17,0.00044383,120]
[330475722,1719470733087,-1276.49,0.00044383,120]
[330475723,1719470733134,-500.0,0.00044383,120]
[330475724,1719470733179,-522.15,0.00044383,120]
[330475725,1719470733226,-1268.37,0.00044383,120]
[330475726,1719470733273,-502.13621561,0.00044383,120]
[330475727,1719470733319,-500.0,0.00044383,120]
[330475728,1719470733365,-1526.45,0.00044383,120]
[330475729,1719470733413,-500.0,0.00044383,120]
[330475730,1719470733462,-500.0,0.00044383,120]
[330475731,1719470733512,-4324.46,0.00044383,120]
[330475732,1719470733561,-500.0,0.00044383,120]
[330475733,1719470733610,-699.36,0.00044383,120]
[330475734,1719470733658,-500.0,0.00044383,120]
[330475735,1719470733707,-696.16,0.00044383,120]
[330475736,1719470733754,-1864.6,0.00044383,120]
[330475737,1719470733804,-2187.6,0.00044383,120]
[330475738,1719470733854,-500.0,0.00044383,120]
[330475739,1719470733901,-1496.44,0.00044383,120]
[330475740,1719470733952,-500.0,0.00044383,120]
[330475741,1719470733998,-500.0,0.00044383,120]
[330475742,1719470734045,-500.0,0.00044383,120]
[330475743,1719470734095,-206.3601273,0.00044383,120]
[330475744,1719470734142,-500.0,0.00044383,120]
[330475745,1719470734189,-502.76549819,0.00044383,120]
[330475746,1719470734240,-500.0,0.00044383,120]
[330475747,1719470734289,-606.91,0.00044383,120]
[330475748,1719470734340,-656.81,0.00044383,120]
[330475749,1719470734390,-4053.69,0.00044383,120]
[330475750,1719470734437,-500.0,0.00044383,120]
[330475751,1719470734483,-1623.32,0.00044383,120]
[330475752,1719470734529,-500.0,0.00044383,120]
[330475753,1719470734575,-654.85,0.00044383,120]
[330475754,1719470734622,-1297.57,0.00044383,120]
[330475755,1719470734670,-552.9,0.00044383,120]
[330475756,1719470734714,-1423.34,0.00044383,120]
[330475757,1719470734760,-1928.61,0.00044383,120]
[330475758,1719470734807,-1548.18,0.00044383,120]
[330475759,1719470734852,-326.47424411,0.00044383,120]
[330475760,1719470734897,-797.49,0.00044383,120]
[330475761,1719470734942,-500.0,0.00044383,120]
[330475762,1719470734990,-1130.37,0.00044383,120]
[330475763,1719470735036,-500.0,0.00044383,120]
[330475764,1719470735085,-1267.08,0.00044383,120]
[330475765,1719470735130,-504.28,0.00044383,120]
[330475766,1719470735175,-500.0,0.00044383,120]
[330475767,1719470735220,-1862.28,0.00044383,120]
[330475768,1719470735266,-500.0,0.00044383,120]
[330475769,1719470735313,-560.09,0.00044383,120]
[330475770,1719470735358,-500.0,0.00044383,120]
[330475771,1719470735405,-500.0,0.00044383,120]
[330475772,1719470735451,-3128.17,0.00044383,120]
[330475773,1719470735498,-500.0,0.00044383,120]
[330475774,1719470735544,-500.0,0.00044383,120]
[330475775,1719470735592,-851.58,0.00044383,120]
[330475776,1719470735638,-766.04,0.00044383,120]
[330475777,1719470735683,-500.0,0.00044383,120]
[330475778,1719470735726,-500.0,0.00044383,120]